Cogmind - Beta 14 @@@ ROGUE MODE // 2024.10.07 @ 19:30:45 Player: anastasia Result: Destroyed by YI-UF0 with YI-UF0's Doublenader Performance ------------- Evolutions (0) 0 Regions Visited (2) 400 Robots Destroyed (21) 105 Value Destroyed (288) 288 Prototype IDs (2) 40 Alien Tech Used (0) 0 Bonus (0) 0 TOTAL SCORE: 833 Bonus ------- None Cogmind --------- Core Integrity 0/250 Matter 180/300 Energy 63/100 System Corruption 2% Temperature Warm (192) Movement Core (450) Ox8 Location -10/Mines Parts ------- > --- POWER (1) -------- (None) > --- PROPULSION (2) --- (None) > --- UTILITY (2) ------ Large Storage Unit > --- WEAPON (2) ------- Beam Cannon Assault Rifle > --- INVENTORY (15) --- Light Ion Engine Wheel Compact Wheel Assault Rifle Shotgun Grenade Launcher Datajack Peak State ------------ > --- POWER ------------ Light Ion Engine > --- PROPULSION ------- Compact Wheel Compact Wheel > --- UTILITY ---------- Large Storage Unit Seismic Detector > --- WEAPON ----------- Shotgun Improved Light Cannon > --- INVENTORY -------- Light Ion Engine Light Ion Engine Wheel Compact Wheel Hardened Light Armor Plating Beam Cannon Assault Rifle Assault Rifle Grenade Launcher Datajack [Rating: 10] Favorites ----------- Power Light Ion Engine Engine Light Ion Engine Propulsion Compact Wheel Treads Light Treads Wheel Compact Wheel Utility Large Storage Unit Device Seismic Detector Storage Large Storage Unit Protection Hardened Light Armor Plating Weapon Improved Light Cannon Energy Gun EM Pulse Gun Energy Cannon Beam Cannon Ballistic Gun Assault Rifle Ballistic Cannon Improved Light Cannon Launcher Grenade Launcher Build | -11 -10 -10 ------- Run | Yrd Mat Min Slots Evolved . | . . . Power . | . . . Propulsion . | . . . Utility . | . . . Weapon . | . . . Parts Attached 24 | 9 10 5 Power 3 | 1 1 1 Engine 3 | 1 1 1 Core . | . . . Reactor . | . . . Propulsion 5 | 4 1 . Treads 2 | 2 . . Leg . | . . . Wheel 3 | 2 1 . Hover . | . . . Flight . | . . . Utility 4 | 2 2 . Device 1 | 1 . . Storage 2 | 1 1 . Processor . | . . . Hackware . | . . . Protection 1 | . 1 . Artifact . | . . . Weapon 12 | 2 6 4 Energy Gun 2 | 1 1 . Energy Cannon 1 | . . 1 Ballistic Gun 5 | 1 3 1 Ballistic Cannon 3 | . 2 1 Launcher 1 | . . 1 Special Weapon . | . . . Impact Weapon . | . . . Slashing Weapon . | . . . Piercing Weapon . | . . . Special Melee Weapon . | . . . Unidentified Prototypes . | . . . Parts Lost 9 | . 3 6 Power 3 | . 1 2 Propulsion 3 | . 1 2 Utility 1 | . . 1 Weapon 2 | . 1 1 Highest Loss Streak 6 | . 1 6 To Critical Strikes . | . . . Average Slot Usage (%) 98 | . 98 92 Engine 13 | . 13 12 Wheel 26 | . 27 23 Device 10 | . 11 . Storage 14 | . 14 14 Protection 3 | . 2 12 Energy Gun 5 | . 6 . Ballistic Gun 10 | . 10 11 Ballistic Cannon 11 | . 11 11 Peak Build Rating 10 | 7 10 10 Average Rating 8 | 4 8 9 On Entrance 5 | . 7 10 Naked Turns . | . . . Heaviest Build 35 | 15 35 35 Greatest Support 40 | 40 32 32 Greatest Overweight (x) 2 | 2 1 1 Average Overweight (x) . | . . 1 Largest Inventory Capacity 15 | 8 15 15 Average Capacity 12 | 6 13 15 Most Carried 11 | 5 11 9 Average Carried 8 | 2 8 8 Final Capacity 15 | 8 15 15 Final Carried 9 | 4 9 7 Class Distribution -------------------- 100% | Mutant Dominant Class ---------------- Mutant | -10/Materials Mutant | -10/Mines Resources | -11 -10 -10 ----------- Run | Yrd Mat Min Matter Collected 546 | 291 255 . Remotely . | . . . Salvage Created 490 | 98 392 . Parts 46 | 7 39 . Haulers Intercepted 1 | . 1 . Recyclers Shooed 1 | . 1 . Parts Field Recycled . | . . . Retrieved Matter . | . . . Parts Self-Destructed . | . . . Prevented . | . . . Kills | -11 -10 -10 ------- Run | Yrd Mat Min Combat Hostiles Destroyed 16 | . 16 . Guns 12 | . 12 . Cannons 4 | . 4 . Classes Destroyed 7 | 2 5 . Worker 1 | . 1 . Tunneler 1 | 1 . . Hauler 1 | . 1 . Recycler 1 | 1 . . Watcher 1 | . 1 . Swarmer 12 | . 12 . Grunt 4 | . 4 . Best Kill Streak 7 | 1 7 . Combat Bots Only 6 | . 6 . Max Kills in Single Turn 1 | 1 1 . Gunslinging . | . . . Exploded . | . . . Melee . | . . . Uniques/NPCs Destroyed . | . . . Combat | -11 -10 -10 -------- Run | Yrd Mat Min Hostile Shots Fired 115 | . 89 26 Missed 34 | . 28 6 Damage Taken 1162 | 3 526 633 Core 254 | . 103 151 Absorbed by Shields . | . . . Core Remaining (%) 100 | 100 . . Volleys Fired 59 | 5 45 9 Largest 2 | 2 2 2 Hottest 99 | 60 79 99 Shots Fired 108 | 10 85 13 Gun 71 | 10 60 1 Cannon 37 | . 25 12 Launcher . | . . . Special . | . . . Kinetic 78 | 5 69 4 Thermal 9 | . . 9 Explosive . | . . . Electromagnetic 21 | 5 16 . Robot Hit Streak 8 | 2 5 8 Robot Miss Streak 5 | 1 5 2 Penetration Max . | . . . Secondary Targets 1 | . 1 . Max Gunslinging Chain 1 | . 1 . Shots Hit Robots 66 | 7 48 11 Core Hits 28 | 2 25 1 Critical Kills 1 | . 1 . Critical Parts Destroyed 1 | . 1 . Critical Strikes 4 | . 4 . Destroy 2 | . 2 . Blast 2 | . 2 . Melee Attacks . | . . . Impact . | . . . Slashing . | . . . Piercing . | . . . Sneak Attacks . | . . . Combat Hostiles . | . . . Follow-up Attacks . | . . . Damage Inflicted 1090 | 102 794 194 Guns 598 | 96 489 13 Cannons 486 | . 305 181 Explosions . | . . . Melee . | . . . Ramming 6 | 6 . . Kinetic 811 | 58 682 71 Thermal 123 | . . 123 Explosive . | . . . Electromagnetic 150 | 38 112 . Impact . | . . . Slashing . | . . . Piercing . | . . . Highest Corruption 2 | . 2 2 Average Corruption 2 | . 2 2 Corruption Purged . | . . . Corruption Blocked . | . . . Effects 7 | . 5 2 Message Errors 1 | . 1 . Heat Flow Errors 1 | . . 1 Energy Discharges 4 | . 3 1 Weapon Failures 1 | . 1 . Overload Shots . | . . . Overflow Damage 5 | . 5 . Projectiles 5 | . 5 . Explosions . | . . . Melee . | . . . Knockbacks 4 | . 4 . Impact . | . . . Kinetic 4 | . 4 . Secondary . | . . . Self-Inflicted Damage 3 | 3 . . Shots . | . . . Rammed 1 | 1 . . Targets Rammed 1 | 1 . . Kicked . | . . . Crushed . | . . . Highest Temperature 212 | . 54 212 Average Temperature 57 | . 20 119 Received Heat Transfer 42 | . 42 . Siege Activations . | . . . Robots Corrupted . | . . . Combat Hostiles . | . . . Parts Fried . | . . . Impact Corruptions . | . . . Robots Melted . | . . . Combat Hostiles . | . . . Parts Melted . | . . . Heat Transferred 259 | . . 259 Parts Sabotaged . | . . . Parts Stolen . | . . . Parts Stripped . | . . . Power Chain Reactions . | . . . Alert | -11 -10 -10 ------- Run | Yrd Mat Min Peak Influence 205 | 10 205 71 Initial 71 | . 6 71 Average 101 | 3 116 64 Maximum Alert Level 1 | . 1 . Low Security (%) 98 | 100 98 100 Level 1 1 | . 1 . Level 2 . | . . . Level 3 . | . . . Level 4 . | . . . Level 5 . | . . . High Security . | . . . Max Security . | . . . Squads Dispatched 1 | . 1 . Investigation . | . . . Extermination . | . . . Reinforcement 1 | . 1 . Assault . | . . . Garrison . | . . . Intercept . | . . . Searches Triggered . | . . . Construction Impeded . | . . . Haulers Reinforced . | . . . Active Scanning Responses . | . . . Cargo Convoy Interrupts . | . . . Stealth | -11 -10 -10 --------- Run | Yrd Mat Min Distress Signals 1 | . 1 . Communications Jammed . | . . . Distress Signals . | . . . Times Spotted 28 | . 27 1 Peak Tracking Total 4 | . 4 1 Tactical Retreats 2 | . 2 . Traps | -11 -10 -10 ------- Run | Yrd Mat Min Traps Triggered 2 | . 2 . Indirectly . | . . . Trap Hack Attempts . | . . . Triggered . | . . . Disarmed . | . . . Reprogrammed . | . . . Reused . | . . . Traps Extracted . | . . . Installed . | . . . Triggered . | . . . Machines | -11 -10 -10 ---------- Run | Yrd Mat Min Machines Disabled . | . . . Max in Single Turn . | . . . Machines Repaired . | . . . Machines Dismantled . | . . . Machines Sabotaged . | . . . Overloaded Fab Kills . | . . . Hacking | -11 -10 -10 --------- Run | Yrd Mat Min Machines Accessed 7 | . 7 . Terminals 7 | . 7 . Fabricators . | . . . Repair Stations . | . . . Recycling Units . | . . . Scanalyzers . | . . . Garrison Access . | . . . Total Hacks 17 | . 17 . Successful 11 | . 11 . Failed 6 | . 6 . Catastrophic 2 | . 2 . Database Lockouts . | . . . Manual . | . . . Terminals 17 | . 17 . Fabricators . | . . . Repair Stations . | . . . Recycling Units . | . . . Scanalyzers . | . . . Garrison Access . | . . . Terminal Hacks 11 | . 11 . Prototype ID Bank 1 | . 1 . Level Access Points 1 | . 1 . Branch Access Points 1 | . 1 . Alert Level 2 | . 2 . Locate Traps 2 | . 2 . Recall Reinforcements 1 | . 1 . Hauler Manifests 1 | . 1 . Zone Layout 2 | . 2 . Fabricator Hacks . | . . . Repair Station Hacks . | . . . Recycling Unit Hacks . | . . . Scanalyzer . | . . . Garrison Access Hacks . | . . . Unauthorized Hacks . | . . . Terminals . | . . . Fabricators . | . . . Repair Stations . | . . . Recycling Units . | . . . Scanalyzers . | . . . Garrison Access . | . . . Data Cores Recovered . | . . . Used . | . . . Hacking Detections 5 | . 5 . Full Trace Events 1 | . 1 . Feedback Events . | . . . Feedback Blocked . | . . . Robot Schematics Acquired . | . . . Robots Built . | . . . Authchips . | . . . Time . | . . . Total Robot Build Rating . | . . . Part Schematics Acquired . | . . . Parts Built . | . . . Authchips . | . . . Time . | . . . Total Part Build Rating . | . . . Parts Repaired . | . . . Time . | . . . Parts Recycled . | . . . Recycled Matter . | . . . Retrieved Matter . | . . . Retrieved Components . | . . . Parts Scanalyzed . | . . . Part Schematics Acquired . | . . . Parts Damaged . | . . . Bothacking | -11 -10 -10 ------------ Run | Yrd Mat Min Used RIF Installer . | . . . Robots Hacked . | . . . Non-combat . | . . . Combat . | . . . Robot Hacks Applied . | . . . Relay Couplers Released . | . . . Fabnet Peak Effective % . | . . . Robots Rewired . | . . . Allies Hacked . | . . . Hacks Repelled . | . . . Allies | -11 -10 -10 -------- Run | Yrd Mat Min Total Allies . | . . . Largest Group . | . . . Highest-Rated Group . | . . . Highest-Rated Ally . | . . . Total Orders . | . . . Ally Attacks . | . . . Total Damage . | . . . Kills . | . . . Allies Corrupted . | . . . Allies Melted . | . . . Intel | -11 -10 -10 ------- Run | Yrd Mat Min Robot Analysis Total . | . . . Derelict Logs Recovered . | . . . Drone Launches . | . . . Drone Recoveries . | . . . Exploration | -11 -10 -10 ------------- Run | Yrd Mat Min Turns Passed 1279 | 110 1044 125 Spaces Moved 923 | 51 786 86 Core 15 | 15 . . Treads 16 | 16 . . Legs . | . . . Wheels 892 | 20 786 86 Hover . | . . . Flight . | . . . Fastest Speed 50 | 50 90 115 Average Speed 104 | 125 101 115 Slowest Speed 160 | 160 115 115 Overloaded Moves . | . . . Propulsion Burnouts . | . . . Robots Hopped . | . . . Cave-ins Triggered . | . . . Exploration Rate (%) 44 | 5 97 30 Regions Visited 2 Branch Regions 1 Pre-discovered Areas . | . . . Known Exits Taken 1 | . 1 . Unknown Exits Taken 1 | 1 . . Scrap Searched . | . . . Spaces Dug . | . . . Terrain Destroyed 1 | . 1 . Melee . | . . . Projectile 1 | . 1 . AOE . | . . . Terrain Rammed . | . . . Walls Destroyed . | . . . Machines Disabled . | . . . Actions | -11 -10 -10 --------- Run | Yrd Mat Min Total 1129 | 85 944 100 Wait 99 | 10 89 . Move 922 | 51 785 86 Hop . | . . . Pick Up 19 | 8 11 . Fast Attach 5 | 5 . . Attach 10 | 4 4 2 Detach . | . . . Swap 9 | . 6 3 Drop 6 | 2 4 . Fire 59 | 5 45 9 Melee . | . . . Ram . | . . . Kick . | . . . Crush . | . . . Escape Stasis . | . . . Rewire . | . . . Trap . | . . . Miscellaneous . | . . . Route ------- -11/Scrapyard -10/Materials (discovered 4 exits: *Mat x3 / *Min) -10/Mines (discovered 1 exit: *Mat) History --------- Turn | Location | Event 13 | -11/Scrapyard | Discovered new exit (range 14) 111 | -11/Scrapyard | Entered Materials 164 | -10/Materials | Identified exit to Materials 307 | -10/Materials | Build established: Mutant 679 | -10/Materials | Discovered new exit (range 9) 711 | -10/Materials | Identified exit to Mines 1155 | -10/Materials | Entered Mines 1171 | -10/Mines | YI-UF0 nonchalantly dropped a Grenade Launcher on the ground 1267 | -10/Mines | Core integrity fell below 50% 1274 | -10/Mines | Discovered exit to Materials (range 13) 1275 | -10/Mines | Core integrity fell below 20% 1280 | -10/Mines | Destroyed by YI-UF0 with YI-UF0's Doublenader Last Messages --------------- 01271_ The unstable cave ceiling collapses. 01272_ Hrd. Light Armor Plating destroyed. 01273_ The unstable cave ceiling collapses. 01273_ U-05 Engineer lays Concrete. 01274_ The unstable cave ceiling collapses. 01274_ EXIT=FOUND: MATERIALS 01274_ U-05 Engineer builds a Wall. 01275_ The unstable cave ceiling collapses. 01275_ U-05 Engineer lays Concrete. 01275_ K-01 Serf collects debris. 01276_ U-05 Engineer lays Concrete. 01276_ R-06 Scavenger collects Sml. Storage Unit. 01277_ The unstable cave ceiling collapses. 01277_ U-05 Engineer lays Concrete. 01278_ U-05 Engineer builds a Wall. 01279_ The unstable cave ceiling collapses. 01279_ U-05 Engineer lays Concrete. 01279_ K-01 Serf collects debris. 01280_ Lgt. Ion Engine destroyed. Map ----- +----------------------------------------------------+ | ??????????????????# #????????????????? | | ?????????????????## #????????????????? | | ????????????????## #????????????????? | | ????????????????# #????????????????? | | ???????????????## ##????????????????? | | ???????????##### #?????????????????? | | ??????????## ##????????????????? | | ???????#### ##???????????????? | | ??????## ###?????????????? | | ?????## ## ############??? | | ?????# #### #??? | | ?????# ##??# #??? | | ?????# ##???# ####### #??? | | ????## ###????# #????## #??? | | ???## ##???##### ####### #??? | | ??## ##??## ####### ## #??? | | ### ##?# #??## #??? | | ### #### #??? | | ## ## """ #??? | | #?# """ #??? | | # ## rk ] ### """ #??? | | ## #?# ## ##??? | | ####?# ??# %= ## ###???? | | ?????# ??# # ##?????? | | ?????# ???## #####% ## #??????? | | ?????##????##### #u @ ## #??????? | | ???????????????# #!# #??????? | | ???????????????# #??????? | | ???????????????## t ######??????? | | ???????????????### ##???????????? | | ??????????????# # ###????????????? | | ??????????????## r #??????????????? | | ??????????????## #??????????????? | | ???????????????# % g ###??????????????? | | ???????????????# ## #?????????????????? | | ???????????????# % % ?????????????????? | | ??????????????# u ?????????????????? | | ??????????????## < ?????????????????? | | ???????????????# ?????????????????? | | ???????????????# % ? ??????????????????? | | ???????????????# ??????????????????????? | | ????????????????? ???????????????????????? | | ?????????????????????????????????????????? | | ?????????????????????????????????????????? | | ?????????????????????????????????????????? | | ?????????????????????????????????????????? | | ?????????????????????????????????????????? | | ?????????????????????????????????????????? | | | | | +----------------------------------------------------+ Best States ------------- Heat Dissipation 25 Energy Generation 10 Energy Capacity 250 Matter Stores 293 Matter Capacity 300 Sight Range 16 Terrain Scan Density 10 Armor Coverage 150 Evasion (%) 42 Recoil Reduction 2 Item Schematics ----------------- None Robot Schematics ------------------ None Fabricated ------------ Nothing Alien Tech Used ----------------- None Achievements -------------- None Challenges ------------ None Game ------ Seed ProjectionHeartStabilizer Manual? 0 Play Time 00:14:59 Cumulative 14.5 hours Start 2024.10.07 @ 19:10:24 End 2024.10.07 @ 19:30:45 Sessions 1 Manual Loads 0 Difficulty Rogue Special Mode None Game No. 29 Rogue 21 Adventurer 8 Explorer 0 Win Type - Total 0 Types 0/0/0/0/0/0/0/0/0 Lore% 11 Gallery% 20 Achievement% 19 Wizard Run 0 Options --------- Layout 1 ASCII 0 Keyboard 0 Movement Mouse Keybinds 1 Fullscreen 1 Font 32/SmallcapsGlow Map View 50x35 Zoom Use 0% Tactical HUD 1 Map Filters NONE Filters NONE Steam 1 RUN: 366a08dd-b598-4183-99a4-121c4fd6477e